{"text_format":"3","workbook":"xlsx","n_sheets":1,"sheets":["Kulubudjetti"],"not_rendered":{"charts":2,"defined_names":3},"read":"whole","date_system":"1900"}

{"sheet":"Kulubudjetti","index":0,"n_rows":47,"n_cols":7,"rows_kept":47,"merged":[[0,1,0,4],[0,5,0,6],[16,1,16,6],[47,1,47,6]]}
[null,"Kulubudjetti",{"$nulls":3},"CONTOSO, 2013"]
[]
[]
[null," HENKILÖSTÖBUDJETTI"]
{"$rows_empty":7}
[null,"TILA","HENKILÖSTÖ","BUDJETTI","TODELLINEN","EROTUS (€)","EROTUS (%)"]
[null,{"$f":"IFERROR(taulHenkilöstökulut[[#This Row],[TODELLINEN]]/taulHenkilöstökulut[[#This Row],[BUDJETTI]],\"\")","v":{"v":1.13,"d":"$1.13"}},"Toimisto",{"v":500,"d":"500.00 €"},{"v":565,"d":"565.00 €"},{"$f":"taulHenkilöstökulut[[#This Row],[BUDJETTI]]-taulHenkilöstökulut[[#This Row],[TODELLINEN]]","v":{"v":-65,"d":"-65.00 €"}},{"$f":"IFERROR(taulHenkilöstökulut[EROTUS (€)]/taulHenkilöstökulut[BUDJETTI],\"\")","v":{"v":-0.13,"d":"-13%"}}]
[null,{"$f":"IFERROR(taulHenkilöstökulut[[#This Row],[TODELLINEN]]/taulHenkilöstökulut[[#This Row],[BUDJETTI]],\"\")","v":{"v":1.2,"d":"$1.20"}},"Varasto",{"v":125,"d":"125.00 €"},{"v":150,"d":"150.00 €"},{"$f":"taulHenkilöstökulut[[#This Row],[BUDJETTI]]-taulHenkilöstökulut[[#This Row],[TODELLINEN]]","v":{"v":-25,"d":"-25.00 €"}},{"$f":"IFERROR(taulHenkilöstökulut[EROTUS (€)]/taulHenkilöstökulut[BUDJETTI],\"\")","v":{"v":-0.2,"d":"-20%"}}]
[null,{"$f":"IFERROR(taulHenkilöstökulut[[#This Row],[TODELLINEN]]/taulHenkilöstökulut[[#This Row],[BUDJETTI]],\"\")","v":{"v":1,"d":"$1.00"}},"Myyjät",{"v":100,"d":"100.00 €"},{"v":100,"d":"100.00 €"},{"$f":"taulHenkilöstökulut[[#This Row],[BUDJETTI]]-taulHenkilöstökulut[[#This Row],[TODELLINEN]]","v":{"v":0,"d":"0.00 €"}},{"$f":"IFERROR(taulHenkilöstökulut[EROTUS (€)]/taulHenkilöstökulut[BUDJETTI],\"\")","v":{"v":0,"d":"0%"}}]
[null,{"$f":"IFERROR(taulHenkilöstökulut[[#This Row],[TODELLINEN]]/taulHenkilöstökulut[[#This Row],[BUDJETTI]],\"\")","v":{"v":0.9,"d":"$0.90"}},"Muut",{"v":100,"d":"100.00 €"},{"v":90,"d":"90.00 €"},{"$f":"taulHenkilöstökulut[[#This Row],[BUDJETTI]]-taulHenkilöstökulut[[#This Row],[TODELLINEN]]","v":{"v":10,"d":"10.00 €"}},{"$f":"IFERROR(taulHenkilöstökulut[EROTUS (€)]/taulHenkilöstökulut[BUDJETTI],\"\")","v":{"v":0.1,"d":"10%"}}]
[]
[]
[null," TOIMINTABUDJETTI"]
{"$rows_empty":7}
[null,"TILA","TOIMINTA","BUDJETTI","TODELLINEN","EROTUS (€)","EROTUS (%)"]
[null,{"$f":"IFERROR(taulToimintakulut[[#This Row],[TODELLINEN]]/taulToimintakulut[[#This Row],[BUDJETTI]],\"\")","v":{"v":0.98,"d":"$0.98"}},"Markkinointi",{"v":250,"d":"250.00 €"},{"v":245,"d":"245.00 €"},{"$f":"taulToimintakulut[[#This Row],[BUDJETTI]]-taulToimintakulut[[#This Row],[TODELLINEN]]","v":{"v":5,"d":"5.00 €"}},{"$f":"IFERROR(taulToimintakulut[[#This Row],[EROTUS (€)]]/taulToimintakulut[[#This Row],[BUDJETTI]],\"\")","v":{"v":0.02,"d":"2%"}}]
[null,{"$f":"IFERROR(taulToimintakulut[[#This Row],[TODELLINEN]]/taulToimintakulut[[#This Row],[BUDJETTI]],\"\")","v":{"v":1.2,"d":"$1.20"}},"Velat",{"v":125,"d":"125.00 €"},{"v":150,"d":"150.00 €"},{"$f":"taulToimintakulut[[#This Row],[BUDJETTI]]-taulToimintakulut[[#This Row],[TODELLINEN]]","v":{"v":-25,"d":"-25.00 €"}},{"$f":"IFERROR(taulToimintakulut[[#This Row],[EROTUS (€)]]/taulToimintakulut[[#This Row],[BUDJETTI]],\"\")","v":{"v":-0.2,"d":"-20%"}}]
[null,{"$f":"IFERROR(taulToimintakulut[[#This Row],[TODELLINEN]]/taulToimintakulut[[#This Row],[BUDJETTI]],\"\")","v":{"v":1,"d":"$1.00"}},"Edut",{"v":100,"d":"100.00 €"},{"v":100,"d":"100.00 €"},{"$f":"taulToimintakulut[[#This Row],[BUDJETTI]]-taulToimintakulut[[#This Row],[TODELLINEN]]","v":{"v":0,"d":"0.00 €"}},{"$f":"IFERROR(taulToimintakulut[[#This Row],[EROTUS (€)]]/taulToimintakulut[[#This Row],[BUDJETTI]],\"\")","v":{"v":0,"d":"0%"}}]
[null,{"$f":"IFERROR(taulToimintakulut[[#This Row],[TODELLINEN]]/taulToimintakulut[[#This Row],[BUDJETTI]],\"\")","v":{"v":0.9,"d":"$0.90"}},"Tarvikkeet",{"v":100,"d":"100.00 €"},{"v":90,"d":"90.00 €"},{"$f":"taulToimintakulut[[#This Row],[BUDJETTI]]-taulToimintakulut[[#This Row],[TODELLINEN]]","v":{"v":10,"d":"10.00 €"}},{"$f":"IFERROR(taulToimintakulut[[#This Row],[EROTUS (€)]]/taulToimintakulut[[#This Row],[BUDJETTI]],\"\")","v":{"v":0.1,"d":"10%"}}]
[null,{"$f":"IFERROR(taulToimintakulut[[#This Row],[TODELLINEN]]/taulToimintakulut[[#This Row],[BUDJETTI]],\"\")","v":""},"Postikulut",null,null,{"$f":"taulToimintakulut[[#This Row],[BUDJETTI]]-taulToimintakulut[[#This Row],[TODELLINEN]]","v":{"v":0,"d":"0.00 €"}},{"$f":"IFERROR(taulToimintakulut[[#This Row],[EROTUS (€)]]/taulToimintakulut[[#This Row],[BUDJETTI]],\"\")","v":""}]
[null,{"$f":"IFERROR(taulToimintakulut[[#This Row],[TODELLINEN]]/taulToimintakulut[[#This Row],[BUDJETTI]],\"\")","v":""},"Vuokra tai laina",null,null,{"$f":"taulToimintakulut[[#This Row],[BUDJETTI]]-taulToimintakulut[[#This Row],[TODELLINEN]]","v":{"v":0,"d":"0.00 €"}},{"$f":"IFERROR(taulToimintakulut[[#This Row],[EROTUS (€)]]/taulToimintakulut[[#This Row],[BUDJETTI]],\"\")","v":""}]
[null,{"$f":"IFERROR(taulToimintakulut[[#This Row],[TODELLINEN]]/taulToimintakulut[[#This Row],[BUDJETTI]],\"\")","v":""},"Myyntikulut",null,null,{"$f":"taulToimintakulut[[#This Row],[BUDJETTI]]-taulToimintakulut[[#This Row],[TODELLINEN]]","v":{"v":0,"d":"0.00 €"}},{"$f":"IFERROR(taulToimintakulut[[#This Row],[EROTUS (€)]]/taulToimintakulut[[#This Row],[BUDJETTI]],\"\")","v":""}]
[null,{"$f":"IFERROR(taulToimintakulut[[#This Row],[TODELLINEN]]/taulToimintakulut[[#This Row],[BUDJETTI]],\"\")","v":""},"Verot",null,null,{"$f":"taulToimintakulut[[#This Row],[BUDJETTI]]-taulToimintakulut[[#This Row],[TODELLINEN]]","v":{"v":0,"d":"0.00 €"}},{"$f":"IFERROR(taulToimintakulut[[#This Row],[EROTUS (€)]]/taulToimintakulut[[#This Row],[BUDJETTI]],\"\")","v":""}]
[null,{"$f":"IFERROR(taulToimintakulut[[#This Row],[TODELLINEN]]/taulToimintakulut[[#This Row],[BUDJETTI]],\"\")","v":""},"Tarvikkeet",null,null,{"$f":"taulToimintakulut[[#This Row],[BUDJETTI]]-taulToimintakulut[[#This Row],[TODELLINEN]]","v":{"v":0,"d":"0.00 €"}},{"$f":"IFERROR(taulToimintakulut[[#This Row],[EROTUS (€)]]/taulToimintakulut[[#This Row],[BUDJETTI]],\"\")","v":""}]
[null,{"$f":"IFERROR(taulToimintakulut[[#This Row],[TODELLINEN]]/taulToimintakulut[[#This Row],[BUDJETTI]],\"\")","v":""},"Muut",null,null,{"$f":"taulToimintakulut[[#This Row],[BUDJETTI]]-taulToimintakulut[[#This Row],[TODELLINEN]]","v":{"v":0,"d":"0.00 €"}},{"$f":"IFERROR(taulToimintakulut[[#This Row],[EROTUS (€)]]/taulToimintakulut[[#This Row],[BUDJETTI]],\"\")","v":""}]
[null,{"$f":"IFERROR(taulToimintakulut[[#This Row],[TODELLINEN]]/taulToimintakulut[[#This Row],[BUDJETTI]],\"\")","v":""},"Vakuutus",null,null,{"$f":"taulToimintakulut[[#This Row],[BUDJETTI]]-taulToimintakulut[[#This Row],[TODELLINEN]]","v":{"v":0,"d":"0.00 €"}},{"$f":"IFERROR(taulToimintakulut[[#This Row],[EROTUS (€)]]/taulToimintakulut[[#This Row],[BUDJETTI]],\"\")","v":""}]
[null,{"$f":"IFERROR(taulToimintakulut[[#This Row],[TODELLINEN]]/taulToimintakulut[[#This Row],[BUDJETTI]],\"\")","v":""},"Korot",null,null,{"$f":"taulToimintakulut[[#This Row],[BUDJETTI]]-taulToimintakulut[[#This Row],[TODELLINEN]]","v":{"v":0,"d":"0.00 €"}},{"$f":"IFERROR(taulToimintakulut[[#This Row],[EROTUS (€)]]/taulToimintakulut[[#This Row],[BUDJETTI]],\"\")","v":""}]
[null,{"$f":"IFERROR(taulToimintakulut[[#This Row],[TODELLINEN]]/taulToimintakulut[[#This Row],[BUDJETTI]],\"\")","v":""},"Puhelin",null,null,{"$f":"taulToimintakulut[[#This Row],[BUDJETTI]]-taulToimintakulut[[#This Row],[TODELLINEN]]","v":{"v":0,"d":"0.00 €"}},{"$f":"IFERROR(taulToimintakulut[[#This Row],[EROTUS (€)]]/taulToimintakulut[[#This Row],[BUDJETTI]],\"\")","v":""}]
[null,{"$f":"IFERROR(taulToimintakulut[[#This Row],[TODELLINEN]]/taulToimintakulut[[#This Row],[BUDJETTI]],\"\")","v":""},"Huollot ja korjaukset",null,null,{"$f":"taulToimintakulut[[#This Row],[BUDJETTI]]-taulToimintakulut[[#This Row],[TODELLINEN]]","v":{"v":0,"d":"0.00 €"}},{"$f":"IFERROR(taulToimintakulut[[#This Row],[EROTUS (€)]]/taulToimintakulut[[#This Row],[BUDJETTI]],\"\")","v":""}]
[null,{"$f":"IFERROR(taulToimintakulut[[#This Row],[TODELLINEN]]/taulToimintakulut[[#This Row],[BUDJETTI]],\"\")","v":""},"Oikeudelliset maksut",null,null,{"$f":"taulToimintakulut[[#This Row],[BUDJETTI]]-taulToimintakulut[[#This Row],[TODELLINEN]]","v":{"v":0,"d":"0.00 €"}},{"$f":"IFERROR(taulToimintakulut[[#This Row],[EROTUS (€)]]/taulToimintakulut[[#This Row],[BUDJETTI]],\"\")","v":""}]
[null,{"$f":"IFERROR(taulToimintakulut[[#This Row],[TODELLINEN]]/taulToimintakulut[[#This Row],[BUDJETTI]],\"\")","v":""},"Poistot",null,null,{"$f":"taulToimintakulut[[#This Row],[BUDJETTI]]-taulToimintakulut[[#This Row],[TODELLINEN]]","v":{"v":0,"d":"0.00 €"}},{"$f":"IFERROR(taulToimintakulut[[#This Row],[EROTUS (€)]]/taulToimintakulut[[#This Row],[BUDJETTI]],\"\")","v":""}]
[null,{"$f":"IFERROR(taulToimintakulut[[#This Row],[TODELLINEN]]/taulToimintakulut[[#This Row],[BUDJETTI]],\"\")","v":""},"Lähetys",null,null,{"$f":"taulToimintakulut[[#This Row],[BUDJETTI]]-taulToimintakulut[[#This Row],[TODELLINEN]]","v":{"v":0,"d":"0.00 €"}},{"$f":"IFERROR(taulToimintakulut[[#This Row],[EROTUS (€)]]/taulToimintakulut[[#This Row],[BUDJETTI]],\"\")","v":""}]
[null,{"$f":"IFERROR(taulToimintakulut[[#This Row],[TODELLINEN]]/taulToimintakulut[[#This Row],[BUDJETTI]],\"\")","v":""},"Varastointi",null,null,{"$f":"taulToimintakulut[[#This Row],[BUDJETTI]]-taulToimintakulut[[#This Row],[TODELLINEN]]","v":{"v":0,"d":"0.00 €"}},{"$f":"IFERROR(taulToimintakulut[[#This Row],[EROTUS (€)]]/taulToimintakulut[[#This Row],[BUDJETTI]],\"\")","v":""}]
[null,{"$f":"IFERROR(taulToimintakulut[[#This Row],[TODELLINEN]]/taulToimintakulut[[#This Row],[BUDJETTI]],\"\")","v":""},"Muut",null,null,{"$f":"taulToimintakulut[[#This Row],[BUDJETTI]]-taulToimintakulut[[#This Row],[TODELLINEN]]","v":{"v":0,"d":"0.00 €"}},{"$f":"IFERROR(taulToimintakulut[[#This Row],[EROTUS (€)]]/taulToimintakulut[[#This Row],[BUDJETTI]],\"\")","v":""}]
[null,null,"Kulut yhteensä",{"$f":"SUBTOTAL(109,taulToimintakulut[BUDJETTI],taulHenkilöstökulut[BUDJETTI])","v":{"v":1400,"d":"1,400.00 €"}},{"$f":"SUBTOTAL(109,taulToimintakulut[TODELLINEN],taulHenkilöstökulut[TODELLINEN])","v":{"v":1490,"d":"1,490.00 €"}},{"$f":"SUBTOTAL(109,taulToimintakulut[EROTUS (€)],taulHenkilöstökulut[EROTUS (€)])","v":{"v":-90,"d":"-90.00 €"}},{"$f":"IFERROR(SUM(taulToimintakulut[[#Totals],[EROTUS (€)]]/taulToimintakulut[[#Totals],[BUDJETTI]]),\"\")","v":{"v":-0.06428571428571428,"d":"-6%"}}]